bitfinex/quotes_BTCUSD_20250226
["timestamp","ask_amount","ask_price","bid_price","bid_amount"]
[1740575919151,6.16098238,87879.0,87878.0,15.89462715]
[1740575919374,6.16331938,87879.0,87878.0,15.89462715]
[1740575919866,1.99213338,87879.0,87878.0,15.89462715]
[1740575920131,1.77090638,87879.0,87878.0,15.89462715]
[1740575920382,2.25954138,87879.0,87878.0,15.89462715]
[1740575920591,1.80515538,87879.0,87878.0,15.89462715]
[1740575920845,9.41930043,87879.0,87878.0,15.89462715]
[1740575921082,9.00070043,87879.0,87878.0,15.89462715]
[1740575921317,9.00070043,87879.0,87878.0,15.83035031]
[1740575921538,8.96169543,87879.0,87878.0,15.83035031]
[1740575921818,8.9165112,87879.0,87878.0,15.83035031]
[1740575922052,8.71857015,87879.0,87878.0,15.83035031]
[1740575922305,8.36325015,87879.0,87878.0,13.73465979]
[1740575922540,8.36325015,87879.0,87878.0,11.99117062]
[1740575922541,4.34497301,87879.0,87878.0,11.99117062]
[1740575922778,3.91449301,87879.0,87878.0,11.71794467]
[1740575923033,3.92497301,87879.0,87878.0,11.71794467]
[1740575923270,4.62497301,87879.0,87878.0,11.69745594]
[1740575923506,4.61449301,87879.0,87878.0,11.69745594]
[1740575923745,4.62497301,87879.0,87878.0,11.69745594]
[1740575924193,4.60397301,87879.0,87878.0,11.69745594]
[1740575924504,4.62883593,87879.0,87878.0,11.69745594]
[1740575924741,4.92183593,87879.0,87878.0,11.4875301]
[1740575924982,4.91135593,87879.0,87878.0,11.4875301]
[1740575925230,4.93583593,87879.0,87878.0,11.4875301]
[1740575925462,4.92883593,87879.0,87878.0,11.4875301]
[1740575925676,4.93583593,87879.0,87878.0,11.4875301]
[1740575926193,5.79513593,87879.0,87878.0,11.25974765]
[1740575926443,5.78465593,87879.0,87878.0,11.25974765]
[1740575926633,5.79513593,87879.0,87878.0,11.25974765]
[1740575927735,5.78813593,87879.0,87878.0,11.25974765]
[1740575928172,5.80213593,87879.0,87878.0,11.25974765]
[1740575928790,5.80913593,87879.0,87878.0,11.25974765]
[1740575928979,5.79513593,87879.0,87878.0,11.25974765]
[1740575929322,5.78813593,87879.0,87878.0,11.25974765]
[1740575929500,5.50544493,87879.0,87878.0,11.25974765]
[1740575930626,7.29239293,87879.0,87878.0,11.25974765]
[1740575930830,7.29939293,87879.0,87878.0,11.25974765]
[1740575931037,5.04106293,87879.0,87878.0,11.25974765]
[1740575931248,7.13382093,87879.0,87878.0,11.25974765]
[1740575931437,6.99136001,87879.0,87878.0,11.25974765]
[1740575931639,6.99836001,87879.0,87878.0,11.25974765]
[1740575931848,6.99836001,87879.0,87878.0,11.25474765]
[1740575932056,6.98088001,87879.0,87878.0,11.25474765]
[1740575932261,6.98436001,87879.0,87878.0,11.25474765]
[1740575932467,6.99836001,87879.0,87878.0,11.25474765]
[1740575932673,6.97433409,87879.0,87878.0,11.25474765]
[1740575932878,6.96733409,87879.0,87878.0,11.25474765]
[1740575933090,6.27433409,87879.0,87878.0,11.25474765]
[1740575933349,6.27433409,87879.0,87878.0,11.18994717]
[1740575933515,6.24931324,87879.0,87878.0,11.18994717]
[1740575933658,5.81717424,87879.0,87878.0,11.18994717]
[1740575933862,5.82471509,87879.0,87878.0,11.18994717]
[1740575934076,5.83171509,87879.0,87878.0,11.18994717]
[1740575934278,5.81717424,87879.0,87878.0,11.18994717]
[1740575934503,5.79969424,87879.0,87878.0,11.18994717]
[1740575934707,5.84257747,87879.0,87878.0,11.18994717]
[1740575934915,5.84957747,87879.0,87878.0,11.18994717]
[1740575935080,5.84957747,87879.0,87878.0,11.18693038]
[1740575935279,5.85657747,87879.0,87878.0,11.18693038]
[1740575935541,5.84957747,87879.0,87878.0,11.18693038]
[1740575935778,6.34957747,87879.0,87878.0,11.18693038]
[1740575936166,6.35657747,87879.0,87878.0,11.02746418]
[1740575936608,6.35657747,87879.0,87878.0,10.89325457]
[1740575936828,6.34609747,87879.0,87878.0,10.89325457]
[1740575937045,6.35657747,87879.0,87878.0,10.89325457]
[1740575939071,6.14237347,87879.0,87878.0,10.89325457]
[1740575939273,10.27006662,87879.0,87878.0,10.89325457]
[1740575939515,8.03936462,87879.0,87878.0,10.89325457]
[1740575939714,6.58935576,87879.0,87878.0,10.89325457]
[1740575940167,6.59689661,87879.0,87878.0,10.89325457]
[1740575940373,6.58235576,87879.0,87878.0,10.89325457]
[1740575940797,6.60389661,87879.0,87878.0,10.89325457]
[1740575940997,6.59689661,87879.0,87878.0,10.89325457]
[1740575941182,6.58603423,87879.0,87878.0,10.89325457]
[1740575941637,6.57903423,87879.0,87878.0,10.89325457]
[1740575942113,6.58603423,87879.0,87878.0,10.89325457]
[1740575942338,6.59303423,87879.0,87878.0,10.89325457]
[1740575942753,6.57903423,87879.0,87878.0,10.89325457]
[1740575942987,6.58603423,87879.0,87878.0,10.89325457]
[1740575943199,6.57149338,87879.0,87878.0,10.89325457]
[1740575943637,6.40886288,87879.0,87878.0,10.89325457]
[1740575944642,6.40406798,87879.0,87878.0,10.89325457]
[1740575945896,0.88835098,87879.0,87878.0,10.89325457]
[1740575946305,0.87787098,87879.0,87878.0,10.89325457]
[1740575946462,0.88835098,87879.0,87878.0,10.89325457]
[1740575946657,7.34538398,87879.0,87878.0,10.89325457]
[1740575946820,7.64889098,87879.0,87878.0,10.89325457]
[1740575947029,7.64189098,87879.0,87878.0,10.89325457]
[1740575947288,7.01938498,87879.0,87878.0,10.89325457]
[1740575947513,7.01238498,87879.0,87878.0,10.89325457]
[1740575948002,7.01938498,87879.0,87878.0,10.89325457]
[1740575948624,7.04213405,87879.0,87878.0,10.89325457]
[1740575948796,6.69475905,87879.0,87878.0,10.89325457]
[1740575949214,6.71262245,87879.0,87878.0,10.89325457]
[1740575949580,6.69476285,87879.0,87878.0,10.89325457]
[1740575949787,6.39476285,87879.0,87878.0,10.89325457]
[1740575949992,6.03265185,87879.0,87878.0,10.89325457]
[1740575950573,6.32565185,87879.0,87878.0,10.89325457]
[1740575950779,6.31865185,87879.0,87878.0,10.89325457]
[1740575951000,6.30990278,87879.0,87878.0,10.89325457]
[1740575957231,6.22137278,87879.0,87878.0,10.89325457]
[1740575960614,4.91820167,87879.0,87878.0,10.87115485]
[1740575960867,4.91820167,87879.0,87878.0,10.52583864]
[1740575960868,5.10772167,87879.0,87878.0,10.52583864]
[1740575961109,2.99929596,87879.0,87878.0,10.48397486]
[1740575961341,3.72595168,87879.0,87878.0,10.47210486]
[1740575961846,3.72595168,87879.0,87878.0,10.46646106]
[1740575962004,3.72595168,87879.0,87878.0,10.29219298]
[1740575962855,3.72595168,87879.0,87878.0,10.28909298]
[1740575963063,3.71895168,87879.0,87878.0,10.28909298]
[1740575963290,3.72595168,87879.0,87878.0,10.28909298]
[1740575963462,8.76547168,87879.0,87878.0,10.28909298]
[1740575963644,9.93855468,87879.0,87878.0,10.28909298]
[1740575963861,9.93155468,87879.0,87878.0,10.28909298]
[1740575964074,9.60150668,87879.0,87878.0,10.15854267]
[1740575964304,9.61550668,87879.0,87878.0,10.15854267]
[1740575964505,9.60850668,87879.0,87878.0,9.94861682]
[1740575964711,9.60150668,87879.0,87878.0,9.92435424]
[1740575964917,9.61550668,87879.0,87878.0,9.92435424]
[1740575966304,9.60850668,87879.0,87878.0,9.92435424]
[1740575966578,9.60150668,87879.0,87878.0,9.73896942]
[1740575966840,9.61550668,87879.0,87878.0,9.73896942]
[1740575967440,4.11086668,87879.0,87878.0,9.65763831]
[1740575967678,4.11086668,87879.0,87878.0,9.32855844]
[1740575967924,4.11086668,87879.0,87878.0,9.25609999]
[1740575968397,4.11086668,87879.0,87878.0,9.15613529]
[1740575968642,4.11086668,87879.0,87878.0,9.04894494]
[1740575969315,4.10386668,87879.0,87878.0,9.04894494]
[1740575969766,4.11086668,87879.0,87878.0,9.04894494]
[1740575970823,4.11086668,87879.0,87878.0,8.76020305]
[1740575971194,4.11086668,87879.0,87878.0,8.27499587]
[1740575971195,4.23086668,87879.0,87878.0,8.27499587]
[1740575971400,4.23086668,87879.0,87878.0,7.25554187]
[1740575971640,4.23086668,87879.0,87878.0,6.70912487]
[1740575971850,4.26514268,87879.0,87878.0,6.11174448]
[1740575972030,4.25918912,87879.0,87878.0,5.61505644]
[1740575972265,4.25918912,87879.0,87878.0,3.9826495]
[1740575972472,4.25218912,87879.0,87878.0,3.18331125]
[1740575972715,4.25918912,87879.0,87878.0,2.04766925]
[1740575972926,3.55918912,87879.0,87830.0,0.02741777]
[1740575973110,3.55918912,87879.0,87787.0,0.1503167]
[1740575973111,0.2,87821.0,87805.0,8.48335177]
[1740575973356,0.2,87821.0,87805.0,8.46596483]
[1740575973357,0.3,87819.0,87805.0,8.46596483]
[1740575973562,0.3,87817.0,87805.0,8.46596483]
[1740575973771,9.218927,87816.0,87806.0,0.09103478]
[1740575973990,8.53535,87815.0,87806.0,0.09103478]
[1740575974205,0.3,87814.0,87806.0,0.09103478]
[1740575974405,0.01048,87813.0,87806.0,0.09103478]
[1740575974611,0.3,87811.0,87806.0,0.09103478]
[1740575974823,0.3,87809.0,87806.0,0.09103478]
[1740575975033,8.827533,87808.0,87806.0,0.09103478]
[1740575975218,9.953743,87807.0,87806.0,0.09103478]
[1740575975446,10.114238,87807.0,87806.0,0.09103478]
[1740575975876,10.124718,87807.0,87806.0,0.08603478]
[1740575976074,9.521829,87807.0,87806.0,0.08603478]
[1740575976282,0.3,87806.0,87805.0,8.46596483]
[1740575976501,10.4,87806.0,87805.0,8.46596483]
[1740575977783,10.407,87806.0,87805.0,8.46596483]
[1740575977963,10.4,87806.0,87805.0,8.46596483]
[1740575978183,10.318828,87806.0,87805.0,8.46596483]
[1740575979070,9.805002,87806.0,87805.0,8.46596483]
[1740575979784,9.805002,87806.0,87805.0,8.46638913]
[1740575980051,9.808482,87806.0,87805.0,8.46638913]
[1740575980275,9.73308,87806.0,87805.0,8.46638913]
[1740575980492,9.74008,87806.0,87805.0,8.46638913]
[1740575980692,9.494446,87806.0,87805.0,8.46638913]
[1740575980903,9.187446,87806.0,87805.0,8.46638913]
[1740575981322,9.194446,87806.0,87805.0,8.46638913]
[1740575981765,9.183966,87806.0,87805.0,8.46638913]
[1740575981879,9.194446,87806.0,87805.0,8.46638913]
[1740575982081,9.183966,87806.0,87805.0,8.46638913]
[1740575982287,9.194446,87806.0,87805.0,8.46638913]
[1740575982544,0.02448,87806.0,87805.0,8.46638913]
[1740575982741,9.802082,87806.0,87805.0,8.46638913]
[1740575982950,9.951234,87806.0,87805.0,8.46638913]
[1740575983174,9.834772,87806.0,87805.0,8.46638913]
[1740575983561,9.634823,87806.0,87805.0,8.46638913]
[1740575984964,9.964123,87806.0,87805.0,8.46638913]
[1740575985170,9.634823,87806.0,87805.0,8.46638913]
[1740575985866,9.520553,87806.0,87805.0,8.46638913]
[1740575986380,9.402466,87806.0,87805.0,8.46638913]
[1740575986598,9.731766,87806.0,87805.0,8.46638913]
[1740575986746,9.724766,87806.0,87805.0,8.46638913]
[1740575986942,9.717766,87806.0,87805.0,8.46638913]
[1740575987146,9.724766,87806.0,87805.0,8.46638913]
[1740575987365,9.731766,87806.0,87805.0,8.46638913]
[1740575988017,9.721286,87806.0,87805.0,8.46638913]
[1740575988396,2.433946,87806.0,87805.0,8.48092998]
[1740575988806,2.733946,87806.0,87805.0,8.48092998]
[1740575989043,1.941146,87806.0,87805.0,8.50092998]
[1740575989456,1.832946,87806.0,87805.0,8.50092998]
[1740575990682,1.567846,87806.0,87805.0,8.52092998]
[1740575990887,1.557366,87806.0,87805.0,8.52092998]
[1740575991091,1.5686946,87806.0,87805.0,8.52092998]
[1740575992583,1.4474986,87806.0,87805.0,8.52092998]
[1740575993293,0.6546286,87806.0,87805.0,8.52092998]
[1740575994442,2.6393216,87806.0,87805.0,8.52092998]
[1740575994639,7.8034796,87806.0,87805.0,8.48638913]
[1740575994846,10.75795692,87806.0,87805.0,8.48638913]
[1740575995074,10.41013092,87806.0,87805.0,8.48638913]
[1740575995262,8.50959892,87806.0,87805.0,8.48638913]
[1740575995639,7.49539892,87806.0,87805.0,8.48638913]
[1740575995840,7.43769892,87806.0,87805.0,8.50092998]
[1740575996056,4.72600192,87806.0,87805.0,8.50092998]
[1740575996392,1.4322646,87806.0,87805.0,8.52092998]
[1740575996595,1.2643986,87806.0,87805.0,8.52092998]
[1740575996785,1.2199596,87806.0,87805.0,8.52092998]
[1740575996924,1.2199596,87806.0,87805.0,8.50092998]
[1740575997567,1.2199596,87806.0,87805.0,8.52092998]
[1740575998804,1.2199596,87806.0,87805.0,8.50092998]
[1740575999002,1.2199596,87806.0,87805.0,8.52092998]
[1740575999409,1.2199596,87806.0,87805.0,8.50092998]
[1740576000235,6.2699596,87806.0,87805.0,8.48638913]
[1740576000504,6.27379158,87806.0,87805.0,8.48638913]
[1740576000699,2.92449158,87806.0,87805.0,8.48638913]
[1740576000937,1.2199596,87806.0,87805.0,8.62978694]
[1740576001982,1.2094796,87806.0,87805.0,8.51592998]
[1740576002200,1.2199596,87806.0,87805.0,8.51592998]
[1740576002603,1.0737486,87806.0,87805.0,8.51592998]
[1740576002825,0.33550498,87806.0,87805.0,8.51592998]
[1740576003240,0.0148486,87806.0,87805.0,8.51592998]
[1740576003630,4.177e-05,87814.0,87813.0,0.05454085]
[1740576004022,4.177e-05,87814.0,87813.0,0.04754085]
[1740576004799,0.00704177,87814.0,87813.0,0.04054085]
[1740576005464,0.01404177,87814.0,87813.0,0.04213483]
[1740576005682,0.09985565,87822.0,87821.0,0.04054085]
[1740576006327,0.09985565,87822.0,87821.0,0.03354085]
[1740576006539,0.09985565,87822.0,87821.0,0.02854085]
[1740576007170,0.09985565,87822.0,87821.0,0.01454085]
[1740576007392,0.09985565,87822.0,87821.0,0.02854085]
[1740576007517,0.09985565,87822.0,87821.0,0.04249841]
[1740576007978,0.3,87842.0,87822.0,0.01454085]
[1740576008208,0.62065638,87841.0,87840.0,0.10557563]
[1740576008446,0.62065638,87841.0,87840.0,0.11957563]
[1740576008645,0.62065638,87841.0,87840.0,0.13153319]
[1740576008852,0.32065638,87841.0,87840.0,0.13153319]
[1740576009265,0.32065638,87841.0,87840.0,0.11957563]
[1740576009461,0.32078197,87841.0,87840.0,0.11957563]
[1740576011173,0.62078197,87841.0,87840.0,0.01454085]
[1740576011574,0.3,87840.0,87837.0,0.014]
[1740576011774,7.417711,87840.0,87835.0,0.014]
[1740576011927,0.3,87838.0,87835.0,0.014]
[1740576012131,0.3,87836.0,87835.0,0.014]
[1740576012361,7.867415,87836.0,87835.0,0.014]
[1740576012561,7.331551,87836.0,87835.0,0.014]
[1740576013185,7.65220738,87836.0,87820.0,0.014]
[1740576013517,7.65220738,87836.0,87813.0,0.18092]
[1740576013518,0.3,87834.0,87813.0,0.18092]
[1740576013812,0.3,87832.0,87824.0,0.014]
[1740576014046,0.3,87830.0,87824.0,0.014]
[1740576014256,0.3,87828.0,87824.0,0.014]
[1740576014464,0.3,87828.0,87815.0,0.01454085]
[1740576014465,0.3,87826.0,87815.0,0.014]
[1740576015088,0.01787099,87830.0,87815.0,0.014]
[1740576015309,0.3,87824.0,87815.0,0.014]
[1740576015535,0.3,87822.0,87815.0,0.014]
[1740576015754,0.3,87820.0,87815.0,0.014]
[1740576015959,0.3,87818.0,87815.0,0.014]
[1740576016160,0.3,87816.0,87815.0,0.014]
[1740576016390,8.395981,87816.0,87815.0,0.015]
[1740576016622,8.395981,87816.0,87815.0,0.014]
[1740576017087,8.71663738,87816.0,87815.0,0.001]
[1740576017318,8.73146243,87816.0,87815.0,0.001]
[1740576017760,8.73146243,87816.0,87815.0,0.002]
[1740576018371,8.73146243,87816.0,87815.0,0.001]
[1740576018785,8.73846243,87816.0,87815.0,0.001]
[1740576018987,8.73146243,87816.0,87805.0,8.46138913]
[1740576019199,0.3,87814.0,87805.0,8.46138913]
[1740576019403,0.3,87812.0,87805.0,8.46138913]
[1740576019613,0.3,87810.0,87805.0,8.46138913]
[1740576019818,0.3,87808.0,87805.0,8.46138913]
[1740576020024,0.3,87806.0,87805.0,8.46138913]
[1740576020249,10.4,87806.0,87805.0,8.46138913]
[1740576020498,10.4,87806.0,87805.0,8.46180749]
[1740576021201,10.018365,87806.0,87805.0,8.46180749]
[1740576022156,10.02274772,87806.0,87805.0,8.46180749]
[1740576022730,10.02874772,87806.0,87805.0,8.46180749]
[1740576022947,10.02274772,87806.0,87805.0,8.46180749]
[1740576023147,10.05242925,87806.0,87805.0,8.46180749]
[1740576023370,10.05942925,87806.0,87805.0,8.46180749]
[1740576023605,10.05242925,87806.0,87805.0,8.46180749]
[1740576023818,9.80277225,87806.0,87805.0,8.46180749]
[1740576024030,9.79490953,87806.0,87805.0,8.46180749]
[1740576024428,9.76348653,87806.0,87805.0,8.46180749]
[1740576025507,9.77048653,87806.0,87805.0,8.46180749]
[1740576025709,9.76348653,87806.0,87805.0,8.46180749]
[1740576025905,9.740805,87806.0,87805.0,8.46180749]
[1740576026131,7.845467,87806.0,87805.0,8.46180749]
[1740576026331,6.263235,87806.0,87805.0,8.46180749]
[1740576026507,6.263235,87806.0,87805.0,8.49034834]
[1740576026508,1.46239038,87806.0,87805.0,8.49034834]
[1740576026708,0.53307038,87806.0,87805.0,8.49034834]
[1740576026906,0.32765638,87806.0,87805.0,8.49034834]
[1740576027115,0.33813638,87806.0,87805.0,8.49034834]
[1740576027318,0.33813638,87806.0,87805.0,8.6042053]
[1740576027534,0.34513638,87806.0,87805.0,8.6042053]
[1740576028075,0.33813638,87806.0,87805.0,8.6042053]
[1740576028725,0.33113638,87806.0,87805.0,8.6042053]
[1740576028925,0.33813638,87806.0,87805.0,8.6042053]
[1740576029140,0.33113638,87806.0,87805.0,8.57566445]
[1740576029346,0.75288638,87806.0,87805.0,8.47580749]
[1740576029551,0.75288638,87806.0,87805.0,8.49034834]
[1740576030189,0.75988638,87806.0,87805.0,8.49034834]
[1740576030323,0.75988638,87806.0,87805.0,8.6042053]
[1740576030726,0.75588638,87806.0,87805.0,8.6042053]
[1740576031019,5.8163506,87806.0,87805.0,8.46180749]
[1740576031216,10.7446006,87806.0,87805.0,8.46180749]
[1740576031421,10.9740176,87806.0,87805.0,8.46180749]
[1740576031630,10.9710176,87806.0,87805.0,8.46180749]
[1740576031831,10.9770176,87806.0,87805.0,8.46180749]
[1740576032258,10.97718859,87806.0,87805.0,8.46180749]
[1740576032460,0.87718859,87806.0,87805.0,8.46180749]
[1740576032667,0.88388679,87806.0,87805.0,8.46180749]
[1740576032871,0.6482988,87806.0,87805.0,8.46180749]
[1740576033795,11.22371102,87806.0,87805.0,8.46180749]
[1740576033992,11.18496502,87806.0,87805.0,8.46180749]
[1740576034195,11.17896502,87806.0,87805.0,8.46180749]
[1740576034399,11.17043802,87806.0,87805.0,8.46180749]
[1740576034626,11.09784002,87806.0,87805.0,8.46180749]
[1740576034838,11.07235502,87806.0,87805.0,8.45983949]
[1740576035295,10.31374102,87806.0,87805.0,8.45983949]
[1740576038052,10.31684124,87806.0,87805.0,8.45983949]
[1740576038573,10.33941961,87806.0,87805.0,8.45983949]
[1740576039687,10.34026821,87806.0,87805.0,8.45983949]
[1740576042034,9.09534799,87806.0,87805.0,8.45983949]
[1740576042721,9.07276962,87806.0,87805.0,8.45983949]
[1740576043685,9.06228962,87806.0,87805.0,8.45983949]
[1740576043885,9.07276962,87806.0,87805.0,8.45983949]
[1740576044092,8.96600462,87806.0,87805.0,8.45983949]
[1740576045828,1.69859062,87806.0,87805.0,8.47383949]
[1740576046079,0.53788762,87806.0,87805.0,8.48838034]
[1740576046479,0.52861718,87806.0,87805.0,8.48838034]
[1740576046892,0.32120318,87806.0,87805.0,8.48838034]
[1740576047111,0.0068486,87806.0,87805.0,8.6022373]
[1740576047309,0.0138486,87806.0,87805.0,8.6022373]
[1740576047514,0.0078486,87806.0,87805.0,8.6022373]
[1740576047770,0.0128486,87806.0,87805.0,8.6022373]
[1740576048344,0.0058486,87806.0,87805.0,8.6022373]
[1740576048774,0.0058486,87806.0,87805.0,8.48838034]
[1740576049086,1.336649,87806.0,87805.0,8.47383949]
[1740576049289,1.283679,87806.0,87805.0,8.47383949]
[1740576049489,1.005749,87806.0,87805.0,8.47383949]
[1740576049849,0.01648,87806.0,87805.0,8.48838034]
[1740576050046,0.01948,87806.0,87805.0,8.6022373]
[1740576050276,0.01348,87806.0,87805.0,8.6022373]
[1740576050730,0.01748,87806.0,87805.0,8.6022373]
[1740576051250,0.0183286,87806.0,87805.0,8.48838034]
[1740576052881,0.0153286,87806.0,87805.0,8.48838034]
[1740576053108,0.0143286,87806.0,87805.0,8.48838034]
[1740576053311,0.0193286,87806.0,87805.0,8.48838034]
[1740576053712,0.0143286,87806.0,87805.0,8.48838034]
[1740576053912,0.0143286,87806.0,87805.0,8.6022373]
[1740576054126,0.0193286,87806.0,87805.0,8.6022373]
[1740576054577,0.0143286,87806.0,87805.0,8.6022373]
[1740576054983,0.0193286,87806.0,87805.0,8.6022373]
[1740576055681,0.0088486,87806.0,87805.0,8.6022373]
[1740576056550,0.0088486,87806.0,87805.0,8.58557063]
[1740576060402,0.0058486,87806.0,87805.0,8.58557063]
[1740576060573,0.0038486,87806.0,87805.0,8.58557063]
[1740576060939,0.0058486,87806.0,87805.0,8.58557063]
[1740576061430,0.0078486,87806.0,87805.0,8.58557063]
[1740576062961,0.0028486,87806.0,87805.0,8.58557063]
[1740576063373,0.0008486,87806.0,87805.0,8.58557063]
[1740576064814,0.0008486,87806.0,87805.0,8.60557063]
[1740576065218,0.0008486,87806.0,87805.0,8.62557063]
[1740576066447,0.0018486,87806.0,87805.0,8.62557063]
[1740576066860,0.0028486,87806.0,87805.0,8.62557063]
[1740576068264,0.0028486,87806.0,87805.0,8.79640363]
[1740576068461,0.0008484,87822.0,87821.0,0.06854085]
[1740576068837,0.01108763,87822.0,87821.0,0.07539494]
[1740576069037,0.0008484,87822.0,87821.0,0.07539494]
[1740576069293,0.0008484,87822.0,87821.0,0.24619594]
[1740576069502,0.0008484,87822.0,87821.0,0.24519594]
[1740576070554,0.0018484,87822.0,87821.0,0.24519594]
[1740576070740,0.0028484,87822.0,87821.0,0.24519594]
[1740576070948,0.0018484,87822.0,87821.0,0.24519594]
[1740576071151,0.0028484,87822.0,87821.0,0.24519594]
[1740576071570,0.0028484,87822.0,87821.0,0.07439494]
[1740576071818,0.0028484,87822.0,87821.0,0.07598848]
[1740576072511,0.0018484,87822.0,87821.0,0.07598848]
[1740576072709,0.0028484,87822.0,87821.0,0.07598848]
[1740576073392,0.84938988,87836.0,87835.0,0.223774]
[1740576073634,0.15154819,87836.0,87835.0,0.35871485]
[1740576073893,0.15842652,87836.0,87835.0,0.35871485]
[1740576074103,0.15655242,87836.0,87835.0,0.35871485]
[1740576074319,0.15154819,87836.0,87835.0,0.32471485]
[1740576074522,0.15154819,87836.0,87835.0,0.35871485]
[1740576074734,0.15154819,87836.0,87835.0,0.35913321]
[1740576074967,0.15254819,87836.0,87835.0,0.45116799]
[1740576075208,6e-07,87839.0,87838.0,0.344168]
[1740576075431,6e-07,87839.0,87838.0,0.47245638]
[1740576075656,6e-07,87839.0,87838.0,1.33415638]
[1740576075868,0.03051625,87870.0,87869.0,0.344108]
[1740576076080,0.03051625,87870.0,87869.0,0.53952885]
[1740576076547,0.0008482,87912.0,87878.0,0.223691]
[1740576076783,0.0008482,87912.0,87878.0,0.22528295]
[1740576077036,0.0008482,87912.0,87878.0,0.22428295]
[1740576077258,0.00501348,87879.0,87878.0,0.31854676]
[1740576077468,0.00501348,87879.0,87878.0,0.31695481]
[1740576077677,0.00501348,87879.0,87878.0,0.31595481]
[1740576078309,0.0008482,87912.0,87887.0,0.221673]
[1740576078557,0.00092404,87888.0,87887.0,0.23780574]
[1740576078794,0.01876996,87888.0,87887.0,0.25066679]
[1740576079012,0.01876996,87888.0,87887.0,0.24966679]
[1740576079698,0.01976996,87888.0,87887.0,0.25366679]
[1740576079905,0.0008482,87912.0,87893.0,0.23420285]
[1740576080123,0.0008482,87912.0,87893.0,0.31392581]
[1740576080359,0.0008482,87912.0,87893.0,0.31292581]
[1740576082146,0.0018486,87894.0,87893.0,0.32492581]
[1740576084393,0.0018486,87894.0,87893.0,0.32948681]
[1740576085446,0.0008482,87912.0,87895.0,0.23319885]
[1740576085648,0.0008482,87912.0,87895.0,0.24765179]
[1740576086687,0.0018484,87896.0,87895.0,0.25265179]
[1740576086915,0.0028484,87896.0,87895.0,0.25965179]
[1740576087141,0.000849,87955.0,87954.0,0.048]
[1740576087362,0.000849,87955.0,87954.0,0.06254085]
[1740576087574,0.00097464,87955.0,87954.0,0.08845782]
[1740576087787,0.00097464,87955.0,87954.0,0.01454085]
[1740576088007,0.00097464,87955.0,87954.0,0.012]
[1740576088224,0.0008484,87978.0,87948.0,0.18072]
[1740576088225,1.363283,87965.0,87964.0,0.012]
[1740576088456,1.572115,87965.0,87964.0,0.012]
[1740576088666,0.3,87964.0,87962.0,0.01]
[1740576088874,0.00399234,87960.0,87958.0,0.01]
[1740576089093,0.3,87958.0,87955.0,0.01]
[1740576089296,0.3,87956.0,87954.0,0.007]
[1740576089518,9.818674,87955.0,87954.0,0.007]
[1740576089732,9.818674,87955.0,87945.0,0.01]
[1740576089733,0.29990316,87954.0,87945.0,0.01]
[1740576089958,0.00399234,87938.0,87932.0,0.01]
[1740576090171,10.08668958,87937.0,87922.0,0.01]
[1740576090396,0.00399234,87934.0,87921.0,0.01]
[1740576090622,9.324211,87933.0,87928.0,0.01]
[1740576090836,4.86334,87932.0,87928.0,0.01]
[1740576091041,1.640158,87931.0,87928.0,0.01012564]
[1740576091261,0.32035458,87937.0,87932.0,0.01]
[1740576091262,1.690513,87933.0,87932.0,0.01]
[1740576091388,0.01056,87933.0,87932.0,0.01]
[1740576091614,0.31056,87933.0,87932.0,0.01]
[1740576091812,2.104591,87933.0,87932.0,0.01]
[1740576092071,2.31721558,87933.0,87932.0,0.003]
[1740576092265,1.25252958,87933.0,87932.0,0.003]
[1740576092484,0.83831858,87933.0,87932.0,0.003]
[1740576092885,0.84031858,87933.0,87932.0,0.003]
[1740576093720,0.84631858,87933.0,87932.0,0.003]
[1740576093950,0.84031858,87933.0,87932.0,0.003]
[1740576094312,0.84231858,87933.0,87932.0,0.003]
[1740576094914,0.84031858,87933.0,87932.0,0.003]
[1740576095117,0.84031858,87933.0,87932.0,0.005]
[1740576095528,0.84031858,87933.0,87932.0,0.003]
[1740576095983,0.84131858,87933.0,87928.0,0.00012564]
[1740576096219,0.3,87931.0,87928.0,0.00012564]
[1740576096449,0.30399234,87929.0,87928.0,0.00012564]
[1740576096657,10.40399234,87929.0,87928.0,0.00012564]
[1740576096870,9.52815034,87929.0,87928.0,0.00012564]
[1740576097073,9.54771789,87929.0,87928.0,0.00012564]
[1740576097274,9.54968755,87929.0,87928.0,0.00012564]
[1740576097479,9.68068615,87929.0,87928.0,0.00012564]
[1740576097686,9.67565945,87929.0,87928.0,0.00012564]
[1740576097882,9.68065719,87929.0,87928.0,0.00012564]
[1740576098167,9.74947397,87929.0,87928.0,0.00012564]
[1740576098917,9.75647397,87929.0,87928.0,0.00012564]
[1740576099124,9.77399397,87929.0,87928.0,0.00112564]
[1740576099329,9.79687964,87929.0,87928.0,0.00112564]
[1740576099613,9.78987964,87929.0,87928.0,0.00012564]
[1740576099822,9.79687964,87929.0,87928.0,0.00112564]
[1740576100211,9.78287964,87929.0,87928.0,0.00100611]
[1740576100422,9.78287964,87929.0,87898.0,0.003]
[1740576100423,0.00399234,87901.0,87898.0,0.003]
[1740576100629,0.3,87899.0,87898.0,0.003]
[1740576101048,10.222662,87899.0,87898.0,0.003]
[1740576101278,9.938227,87899.0,87898.0,0.003]
[1740576101510,9.807453,87899.0,87898.0,0.003]
[1740576101735,9.77230178,87899.0,87898.0,0.003]
[1740576101958,9.77629412,87899.0,87891.0,0.003]
[1740576102239,0.00399234,87892.0,87891.0,0.003]
[1740576102433,0.3,87891.0,87890.0,0.003]
[1740576102641,10.40399234,87891.0,87890.0,0.003]
[1740576103075,10.46580912,87891.0,87890.0,0.003]
[1740576103274,9.96613712,87891.0,87890.0,0.003]
[1740576103904,9.97113712,87891.0,87890.0,0.003]
[1740576104112,9.97113712,87891.0,87885.0,0.003]
[1740576104315,0.30399234,87889.0,87878.0,0.00092404]
[1740576104518,0.3,87887.0,87882.0,0.003]
[1740576104725,0.00399234,87884.0,87882.0,0.003]
[1740576104931,9.750849,87883.0,87882.0,0.003]
[1740576105131,8.386746,87883.0,87882.0,0.003]
[1740576105468,8.158671,87883.0,87882.0,0.003]
[1740576105683,7.810034,87883.0,87882.0,0.003]
[1740576106157,7.87185078,87883.0,87882.0,0.003]
[1740576106701,7.810034,87883.0,87882.0,0.003]
[1740576106905,7.802434,87883.0,87882.0,0.003]
[1740576107103,6.343034,87883.0,87882.0,0.003]
[1740576107409,6.343034,87883.0,87878.0,0.00092404]
[1740576107410,0.3,87882.0,87878.0,0.00092404]
[1740576107585,10.4,87882.0,87878.0,0.00092404]
[1740576107786,0.3,87880.0,87878.0,0.00092404]
[1740576107959,10.4,87879.0,87878.0,0.00092404]